[Event "Budapest GM ONE WEEK Feb 2024"]
[Site "Budapest"]
[Date "2024.02.28"]
[Round "4.5"]
[White "Pribelszky, Bence"]
[Black "Bodi, Tibor"]
[Result "1-0"]
[ECO "A04"]
[WhiteElo "2371"]
[BlackElo "2294"]
[Annotator "TA"]
[PlyCount "133"]
[EventDate "2024.02.25"]
[EventType "tourn"]
[EventCountry "HUN"]
[SourceTitle "playchess.com"]
[Source "ChessBase"]
[SourceQuality "1"]
[TimeControl "5400+30"]

{[%evp 9,133,18,25,16,44,33,56,60,65,62,71,69,77,60,66,41,65,73,77,75,97,49,52,50,97,58,95,74,62,62,64,62,62,62,69,77,92,60,41,35,32,32,33,32,32,32,55,55,129,111,270,252,277,285,353,354,320,297,297,284,223,154,154,161,161,154,191,191,191,191,191,154,154,154,154,154,154,154,154,154,161,154,154,154,157,157,1102,990,827,788,709,101,592,592,592,592,592,592,592,592,930,878,1461,1236,1326,1180,1142,793,1210,1193,1739,1600,29986,29973,29972,29974,29972,29974,29971,29972,29977,29978,29977,29978,29975,29974]} 1. Nf3 {[%emt 0:09:24]} f5 {[%emt 0:00:25]} 2. d4 {[%emt 0:00:46]} Nf6 {[%emt 0:00:06]} 3. e3 {[%emt 0:00:08]} g6 {[%emt 0:01:10]} 4. Bd3 {[%emt 0:00:08]} Bg7 {[%emt 0:01:33]} 5. O-O {[%emt 0:00:09]} O-O {[%emt 0:02:16]} 6. Nbd2 {[%emt 0:02:06]} d5 {[%emt 0:04:53][%cal Oc7c5]} 7. c4 {[%emt 0:01:11]} e6 {[%emt 0:10:35]} 8. b4 {[%emt 0:03:38] White is slightly better.} Nbd7 {[%emt 0:04:47][%cal Oe6e5]} 9. a4 {[%emt 0:01:52]} Re8 {[%emt 0:04:27]} 10. Qb3 {[%emt 0:02:12]} c6 {[%emt 0:07:59]} 11. Bb2 {[%emt 0:11:06]} Ne4 {[%emt 0:00:51]} 12. Rad1 {[%emt 0:08:00]} h6 {[%emt 0:04:33]} 13. Be2 {[%emt 0:09:41]} Kh7 {[%emt 0:00:20]} 14. Ne5 {[%emt 0:04:01]} a5 {[%emt 0:08:47]} 15. b5 {[%emt 0:07:16]} (15. Nxe4 $16 Nxe5 16. Nf6+ (16. dxe5 fxe4 17. bxa5 Qxa5 $14) 16... Bxf6 17. dxe5) 15... Nxe5 $14 {[%emt 0:02:16]} 16. dxe5 {[%emt 0:01:23]} Bd7 {[%emt 0:01:23]} (16... cxb5 $1 $14 17. axb5 (17. Nxe4 bxc4 18. Bxc4 fxe4 $11) 17... a4) 17. Bd4 {[%emt 0:09:09]} Qc7 {[%emt 0:05:24]} 18. b6 {[%emt 0:03:43]} Nxd2 {[%emt 0:02:16]} 19. Rxd2 {[%emt 0:00:08]} Qd8 {[%emt 0:00:47]} 20. f4 {[%emt 0:04:05]} Qe7 {[%emt 0:00:24]} 21. c5 {[%emt 0:01:14]} Rg8 {[%emt 0:00:54]} 22. g3 {[%emt 0:04:08]} g5 {[%emt 0:00:24]} 23. Kf2 {[%emt 0:00:17][%cal Bg1f2,Bf2e1,Be1d2][%mdl 32] White is much more active.} Be8 {[%emt 0:00:28]} 24. Qd1 {[%emt 0:03:20]} Bf8 {[%emt 0:00:34]} 25. Rc2 {[%emt 0:01:18]} Qg7 {[%emt 0:03:36]} 26. Ke1 {[%emt 0:00:35]} Be7 {[%emt 0:00:14]} 27. Kd2 {[%emt 0:00:38]} g4 {[%emt 0:01:54]} 28. Rh1 {[%emt 0:00:26]} h5 {[%emt 0:02:58]} (28... Bh5 $14) 29. h3 $16 {[%emt 0:00:26]} Kg6 $2 {[%emt 0:00:55]} (29... h4 $16 {might work better.} 30. hxg4 fxg4 31. gxh4 Bg6 32. Bxg4 Bxc2 33. Qxc2+ Kh8) 30. hxg4 $18 {[%emt 0:04:09]} hxg4 {[%emt 0:00:36]} 31. Bd3 {[%emt 0:00:30]} Rh8 {[%emt 0:05:12]} 32. Qxg4+ {[%emt 0:04:06]} Kf7 {[%emt 0:00:00][%cal Bg6f7,Bf7g7,Bg7h8][%mdl 32]} 33. Qxg7+ {[%emt 0:00:07]} Kxg7 {[%emt 0:00:06] [#]} 34. Rxh8 {[%emt 0:00:09]} Kxh8 {[%emt 0:00:03]} 35. Ke1 {[%emt 0:00:29]} Kg7 {[%emt 0:00:16]} 36. Rh2 {[%emt 0:00:19][%cal Og3g4] Wards off Bh5. And now g4! would win.} Bg6 {[%emt 0:00:13]} 37. Be2 {[%emt 0:00:28]} Bh7 {[%emt 0:02:14]} 38. g4 {[%emt 0:02:26]} Bg6 {[%emt 0:00:17]} 39. Kf2 {[%emt 0:02:20]} Kf7 {[%emt 0:00:46]} 40. Bd3 {[%emt 0:02:27]} fxg4 {[%emt 0:03:04]} 41. Bxg6+ {[%emt 0:00:02]} Kxg6 $16 {[%emt 0:00:05][%mdl 4096] Endgame. KRB-KRB} 42. Kg3 {[%emt 0:00:07]} Rb8 {[%emt 0:01:33]} 43. Kxg4 {[%emt 0:00:10]} Rg8 {[%emt 0:00:18]} 44. Kf3 {[%emt 0:00:18] aiming for e4.} Rd8 {[%emt 0:00:33]} 45. Rg2+ {[%emt 0:01:25]} Kf7 {[%emt 0:00:15] [#]} 46. f5 $1 {[%emt 0:00:58][%mdl 512] Hoping for Rh2.} exf5 {[%emt 0:00:21]} 47. Kf4 {[%emt 0:00:08]} Ke6 {[%emt 0:06:00]} (47... Rg8 $16 48. e6+ Kf8) 48. Rg6+ $18 {[%emt 0:00:03]} Kf7 {[%emt 0:00:32]} 49. Kxf5 {[%emt 0:01:07] Intending e6+ and mate.} Rf8 {[%emt 0:00:08]} 50. Rg2 $2 {[%emt 0:00:43]} (50. e4 $18 {and White stays clearly on top. exd5 would now be deadly.} dxe4 51. e6+ Ke8+ 52. Kxe4) 50... Bd8 $2 {[%emt 0:00:22][%mdl 8192]} (50... Ke8+ $16 {is a better chance.} 51. Ke6 Rh8) 51. e6+ {[%emt 0:00:30]} Ke8+ {[%emt 0:00:30]} 52. Ke5 {[%emt 0:00:27] Black must now prevent Kd6.} Be7 {[%emt 0:00:32]} 53. Rg6 {[%emt 0:00:32]} Rh8 {[%emt 0:06:02]} 54. Kf5 {[%emt 0:00:07]} Rf8+ {[%emt 0:00:15] [#]} 55. Kg4 $1 {[%emt 0:00:03]} Kd8 {[%emt 0:00:12]} 56. Rg7 {[%emt 0:00:25]} Rf1 {[%emt 0:00:56]} 57. Rh7 {[%emt 0:01:04]} Rg1+ {[%emt 0:00:37]} 58. Kf3 {[%emt 0:00:22] Rh8+ is the strong threat.} Rg8 {[%emt 0:00:11]} 59. Be5 {[%emt 0:00:47] Bc7+ would kill now.} Re8 {[%emt 0:00:41]} 60. Bd6 {[%emt 0:00:43]} Rf8+ {[%emt 0:01:14]} 61. Rf7 {[%emt 0:00:30] White mates.} Re8 {[%emt 0:01:10]} 62. Kf4 {[%emt 0:00:29]} Bxd6+ {[%emt 0:00:10]} 63. cxd6 {[%emt 0:00:31]} Rxe6 {[%emt 0:00:04]} 64. Rxb7 {[%emt 0:00:21]} Rxd6 {[%emt 0:00:37]} 65. Rb8+ {[%emt 0:00:08]} Kd7 {[%emt 0:00:25]} 66. Ra8 {[%emt 0:00:56]} Rf6+ {[%emt 0:00:36]} 67. Kg5 {[%emt 0:00:17] Weighted Error Value: White=0.23 (precise) /Black=0.43.  Loses game:     	---       	Black=1      Mistake:       	White=1     	Black=3      Inaccurate:     	White=3     	Black=4      OK:         	White=24    	Black=12     Best:        	White=5     	Black=6      Strong:       	White=1     	---} 1-0

[Event "Budapest GM ONE WEEK Feb 2024"]
[Site "Budapest"]
[Date "2024.02.28"]
[Round "5.1"]
[White "Bodi, Tibor"]
[Black "Grover, Sahaj"]
[Result "0-1"]
[ECO "A45"]
[WhiteElo "2294"]
[BlackElo "2503"]
[Annotator "TA"]
[PlyCount "86"]
[EventDate "2024.02.25"]
[EventType "tourn"]
[EventCountry "HUN"]
[SourceTitle "playchess.com"]
[Source "ChessBase"]
[SourceQuality "1"]
[TimeControl "5400+30"]

{[%evp 9,86,0,0,7,-7,-10,0,0,2,-3,-5,0,0,-4,15,0,5,-16,-8,-25,-3,-23,-11,-32,-10,-17,-18,-10,-18,-12,-20,-19,26,0,61,50,46,-17,31,0,0,0,0,0,0,0,0,0,0,0,0,-7,-7,-7,-7,-9,-9,-8,-9,-22,-14,-32,-31,-39,-17,-17,-17,-67,-61,-414,-414,-725,-725,-717,-704,-879,-742,-6436,-5509]} 1. d4 {[%emt 0:00:01]} Nf6 {[%emt 0:00:09]} 2. Bf4 {[%emt 0:00:28]} g6 {[%emt 0:01:50]} 3. Nc3 {[%emt 0:00:20]} d5 {[%emt 0:00:33]} 4. e3 {[%emt 0:04:16]} Bg7 {[%emt 0:00:16]} 5. Nb5 {[%emt 0:04:08]} Na6 {[%emt 0:00:07]} 6. Nf3 {[%emt 0:02:14]} O-O {[%emt 0:00:11]} 7. h3 {[%emt 0:00:41]} c6 {[%emt 0:11:45]} 8. Nc3 {[%emt 0:00:30] The position is equal.} Nc7 {[%emt 0:00:06]} 9. Be5 {[%emt 0:00:37]} b6 {[%emt 0:03:18]} 10. Bd3 {[%emt 0:00:38]} c5 {[%emt 0:01:41]} 11. a4 {[%emt 0:01:21]} Ne6 {[%emt 0:03:51]} 12. O-O {[%emt 0:00:26]} Bb7 {[%emt 0:00:59]} 13. Nd2 {[%emt 0:12:38]} (13. a5 {is more complex.} Ne4 14. Bxg7 Nxc3 15. Qe1) 13... Bh6 {[%emt 0:02:38]} 14. Nf3 {[%emt 0:10:08][%cal Oa4a5]} Rc8 {[%emt 0:05:24]} 15. Be2 {[%emt 0:05:44]} Ne4 {[%emt 0:04:15]} 16. Ra3 {[%emt 0:08:13][%cal Oa4a5]} f6 {[%emt 0:13:22]} 17. Bh2 {[%emt 0:00:15]} cxd4 {[%emt 0:01:45]} 18. Nxe4 {[%emt 0:01:40]} dxe4 {[%emt 0:02:58]} 19. Nxd4 {[%emt 0:00:11]} Nxd4 {[%emt 0:00:07]} 20. exd4 {[%emt 0:00:25][%cal Oa4a5]} Qd5 {[%emt 0:01:47]} 21. c4 {[%emt 0:01:19]} Rxc4 {[%emt 0:11:01]} (21... Qa5 $11) 22. Bxc4 $14 {[%emt 0:00:08]} Qxc4 {[%emt 0:00:05]} 23. Qb3 {[%emt 0:04:16]} (23. Rc3 $14 Qb4 24. Qe1) 23... Rc8 {[%emt 0:05:13]} (23... Qxb3 $11 24. Rxb3 Ba6) 24. a5 {[%emt 0:01:48]} (24. Qxc4+ $5 Rxc4 25. Rc3 Rxd4 26. Rc7 $11) 24... Qxb3 {[%emt 0:16:50]} 25. Rxb3 {[%emt 0:00:03]} Rc2 {[%emt 0:00:05][%cal Oe4e3]} 26. axb6 {[%emt 0:01:44]} axb6 {[%emt 0:00:04][%cal Oe4e3]} 27. Rxb6 {[%emt 0:03:53]} Bd5 {[%emt 0:04:03]} 28. Rb5 {[%emt 0:04:16]} e3 $1 {[%emt 0:00:49][%cal Be4e3,Be3e2][%mdl 32] [#] ( -> ...exf2+)} 29. Bg3 {[%emt 0:02:56]} (29. Rxd5 $2 {too greedy.} exf2+ 30. Kh1 Rc1 31. Rd8+ Kg7 $19) 29... Bc4 {[%emt 0:03:00] This pair of bishops is nice.} 30. Rc5 {[%emt 0:03:12] Re1 would now be deadly.} e2 $1 {[%emt 0:00:36]} 31. Re1 {[%emt 0:01:28] aiming for f4.} Bd2 {[%emt 0:03:36]} 32. Rxc4 {[%emt 0:02:04]} Rxc4 {[%emt 0:00:04]} 33. Rxe2 $11 {[%emt 0:00:03][%mdl 4096] Endgame. KRB-KRB} Bb4 {[%emt 0:00:04]} 34. d5 {[%emt 0:01:31]} Rd4 {[%emt 0:00:06][%cal Og8f7]} 35. Re6 {[%emt 0:03:13][%cal Od5d6]} Rxd5 {[%emt 0:00:44]} 36. Bf4 {[%emt 0:00:44]} g5 {[%emt 0:01:39]} 37. Re4 {[%emt 0:02:46]} Rb5 {[%emt 0:01:29]} 38. Be3 {[%emt 0:00:58]} (38. Bc1 $1 $11) 38... Bd6 $15 {[%emt 0:00:04]} 39. Bd4 $2 {[%emt 0:00:47][%mdl 8192] [#] White does not recover from this.} (39. h4 $15) 39... Rb4 $1 $19 {[%emt 0:00:04]} 40. g4 {[%emt 0:01:46]} (40. Kf1 $142) 40... e5 {[%emt 0:00:29] Black is clearly winning.} 41. Bxe5 {[%emt 0:00:19]} fxe5 {[%emt 0:00:04]} 42. Rxb4 {[%emt 0:00:23]} Bxb4 {[%emt 0:00:05]} 43. Kg2 {[%emt 0:00:04]} e4 {[%emt 0:00:18] Weighted Error Value: White=0.54/Black=0.10 (very precise) .  Loses game:     	White=1     	---        Mistake:       	White=3     	Black=2      Inaccurate:     	White=2     	Black=1      OK:         	White=12    	Black=8      Best:        	---       	Black=1      Strong:       	---       	Black=3} 0-1

[Event "Budapest GM ONE WEEK Feb 2024"]
[Site "Budapest"]
[Date "2024.02.28"]
[Round "5.2"]
[White "Pap, Misa"]
[Black "Pribelszky, Bence"]
[Result "1-0"]
[ECO "B48"]
[WhiteElo "2422"]
[BlackElo "2371"]
[Annotator "TA"]
[PlyCount "81"]
[EventDate "2024.02.25"]
[EventType "tourn"]
[EventCountry "HUN"]
[SourceTitle "playchess.com"]
[Source "ChessBase"]
[SourceQuality "1"]
[TimeControl "5400+30"]

{[%evp 11,81,27,34,28,23,12,47,22,13,13,29,35,34,13,16,23,22,16,25,14,41,25,45,49,45,0,17,15,30,0,56,29,89,80,101,18,101,118,104,122,116,81,188,66,83,91,74,36,152,164,151,166,131,120,127,37,170,28,533,539,616,617,610,583,593,589,1334,1347,1136,1133,1052,1081]} 1. e4 {[%emt 0:01:50]} c5 {[%emt 0:01:27]} 2. Nf3 {[%emt 0:00:17]} e6 {[%emt 0:00:07]} 3. d4 {[%emt 0:00:18]} cxd4 {[%emt 0:00:07]} 4. Nxd4 {[%emt 0:00:03]} Nc6 {[%emt 0:00:05]} 5. Nc3 {[%emt 0:00:34]} Qc7 {[%emt 0:00:07]} 6. Be3 {[%emt 0:00:38]} a6 {[%emt 0:00:07]} 7. Qf3 {[%emt 0:01:36]} Bd6 {[%emt 0:00:20] Against Qg3} 8. O-O-O {[%emt 0:01:14]} Be5 $1 {[%emt 0:00:06]} 9. Nxc6 {[%emt 0:00:49] White is slightly better.} bxc6 {[%emt 0:00:07]} 10. Bd4 {[%emt 0:00:26]} Nf6 {[%emt 0:00:08]} 11. Bxe5 {[%emt 0:00:55]} Qxe5 {[%emt 0:00:06]} 12. Qe3 {[%emt 0:00:56]} Ng4 {[%emt 0:04:04]} 13. Qe1 {[%emt 0:00:19]} Nf6 {[%emt 0:06:58]} 14. f3 {[%emt 0:04:11]} O-O {[%emt 0:08:37]} 15. Bd3 {[%emt 0:00:13]} Qg5+ {[%emt 0:21:37]} 16. Kb1 {[%emt 0:06:16]} d5 {[%emt 0:06:18]} 17. g4 {[%emt 0:05:54]} Nd7 {[%emt 0:03:36]} 18. exd5 {[%emt 0:21:24]} cxd5 {[%emt 0:01:15]} 19. Qg3 {[%emt 0:00:23]} Rb8 {[%emt 0:01:46]} 20. Rhe1 {[%emt 0:06:22]} (20. f4 $5 Qe7 21. Be2 $17) 20... Rb4 {[%emt 0:18:07]} (20... Qd8 $11) 21. a3 $14 {[%emt 0:05:24]} Rb8 {[%emt 0:05:12] [#]} (21... Rb6 $1 $11) 22. f4 $1 $16 {[%emt 0:10:32]} Qd8 {[%emt 0:00:19]} 23. Qh3 {[%emt 0:06:28]} (23. f5 $16) 23... h6 {[%emt 0:10:54] [#]} (23... g6 $1 $11 {remains equal.}) 24. g5 $1 {[%emt 0:08:49][%cal Bg4g5,Bg5h6][%mdl 544]} Nc5 {[%emt 0:02:17]} 25. gxh6 {[%emt 0:01:48]} g6 {[%emt 0:00:19]} 26. Qe3 {[%emt 0:04:56]} Qb6 {[%emt 0:02:32]} (26... Nxd3 $16 27. Rxd3 Qf6) 27. b4 {[%emt 0:00:51] Active counter play!} (27. b3 $18 {Qd4 would now be deadly.} Nxd3 28. Qxd3) 27... Nxd3 $14 {[%emt 0:02:53]} 28. Qxd3 $40 {[%emt 0:02:46][%cal Of4f5][%mdl 128] Hoping for f5! White has strong attack.} (28. cxd3 $2 {perishes.} Qxe3 29. Rxe3 d4 $19) 28... a5 {[%emt 0:04:06]} 29. Na4 {[%emt 0:01:26]} Qc6 {[%emt 0:00:52] [#] Black is weak on the dark squares} ({Black should play} 29... Qa7 $14) 30. Qd4 $1 $16 {[%emt 0:00:10]} f6 {[%emt 0:00:06]} 31. Nc5 {[%emt 0:04:26]} axb4 {[%emt 0:00:04]} 32. axb4 {[%emt 0:00:20]} Kh7 {[%emt 0:00:06]} 33. Re3 {[%emt 0:01:19]} (33. c3 $16) 33... Bd7 {[%emt 0:01:09]} (33... Rf7 $1 $14) 34. Ra3 {[%emt 0:01:09]} ({White should try} 34. c3 $18) 34... Qc7 $2 {[%emt 0:00:22][%mdl 8192]} (34... e5 $1 $11 {and Black has nothing to worry.} 35. fxe5 fxe5 36. Qxe5 Rxb4+ 37. Kc1 Rf7 38. Rxd5 (38. Qxd5 Qxd5 39. Rxd5 Rf1+ 40. Rd1 Rb1+ 41. Kxb1 Rxd1+ 42. Kb2 Bf5 $11) 38... Bf5) 35. Na6 $1 $18 {[%emt 0:00:49][%csl LRb8,LRc7] White is clearly winning.} Qd6 {[%emt 0:00:49]} 36. Nxb8 {[%emt 0:00:17]} Rxb8 {[%emt 0:00:03]} 37. c3 {[%emt 0:00:15]} e5 {[%emt 0:00:19]} 38. fxe5 {[%emt 0:00:22]} Bf5+ {[%emt 0:00:06]} 39. Ka1 {[%emt 0:00:27]} fxe5 {[%emt 0:00:08]} 40. Ra7+ {[%emt 0:00:29]} Kh8 {[%emt 0:00:09]} 41. Qxd5 {[%emt 0:00:22] Weighted Error Value: White=0.29 (precise) /Black=0.46.  Loses game:     	---       	Black=1      Mistake:       	White=4     	Black=6      Inaccurate:     	White=3     	Black=2      OK:         	White=9     	Black=8      Best:        	White=3     	Black=4      Strong:       	White=1     	Black=1      Brilliant:      	White=1     	---} 1-0

[Event "Budapest GM ONE WEEK Feb 2024"]
[Site "Budapest"]
[Date "2024.02.28"]
[Round "5.3"]
[White "Vetoshko, Volodymyr"]
[Black "Tomic, Aleksandar"]
[Result "0-1"]
[ECO "A13"]
[WhiteElo "2505"]
[BlackElo "2398"]
[Annotator "TA"]
[PlyCount "88"]
[EventDate "2024.02.25"]
[EventType "tourn"]
[EventCountry "HUN"]
[SourceTitle "playchess.com"]
[Source "ChessBase"]
[SourceQuality "1"]
[TimeControl "5400+30"]

{[%evp 9,88,28,31,8,0,0,-7,0,12,-24,-20,-29,9,-7,-13,-7,-5,-12,-11,-11,-9,-30,-18,-43,-51,-64,-58,-63,-61,-79,-71,-69,-69,-64,-60,-139,-133,-200,-188,-222,-218,-235,-247,-226,-232,-255,-214,-220,-207,-212,-167,-206,-168,-155,-163,-165,-160,-251,-233,-236,-249,-222,-188,-219,-124,-329,-328,-401,-396,-395,-400,-390,-286,-598,-578,-924,-910,-6036,-5873,-1939,-1503]} 1. c4 {[%emt 0:00:03]} e6 {[%emt 0:01:26]} 2. Nc3 {[%emt 0:00:51]} Bb4 {[%emt 0:00:49]} 3. Qb3 {[%emt 0:01:42]} a5 {[%emt 0:06:16]} 4. a3 {[%emt 0:02:23]} Bxc3 {[%emt 0:01:30]} 5. Qxc3 {[%emt 0:00:08]} Nf6 {[%emt 0:00:16]} 6. g3 {[%emt 0:06:46]} a4 {[%emt 0:04:47]} 7. Bg2 {[%emt 0:01:39]} d6 {[%emt 0:02:31]} 8. d4 {[%emt 0:03:23] The position is equal.} O-O {[%emt 0:02:16]} 9. e4 {[%emt 0:15:29] [#]} e5 $1 {[%emt 0:02:56]} 10. Ne2 {[%emt 0:01:10]} (10. d5 Na6) 10... Re8 {[%emt 0:09:15]} (10... exd4 {is interesting.} 11. Nxd4 Nxe4 12. Bxe4 Re8) 11. d5 {[%emt 0:15:00]} Na6 {[%emt 0:02:38][%cal Bb8a6,Ba6c5,Bc5b3,Bb3d4][%mdl 32]} 12. f3 {[%emt 0:02:22]} Nc5 {[%emt 0:03:35]} 13. Be3 {[%emt 0:00:11]} Nb3 {[%emt 0:02:29]} 14. Rd1 {[%emt 0:00:27]} c5 {[%emt 0:06:26]} 15. O-O {[%emt 0:12:18]} Bd7 {[%emt 0:08:18]} 16. Nc1 {[%emt 0:02:08]} Nd4 {[%emt 0:04:57]} 17. Rf2 {[%emt 0:02:35]} b5 {[%emt 0:08:36]} 18. Bf1 {[%emt 0:01:33]} Rb8 {[%emt 0:01:11]} 19. cxb5 {[%emt 0:02:52]} Bxb5 {[%emt 0:01:40]} 20. Bxb5 {[%emt 0:02:01]} Rxb5 {[%emt 0:01:13]} 21. Qc4 {[%emt 0:08:15][%cal Re3d4]} Qa5 {[%emt 0:01:52]} 22. Bxd4 {[%emt 0:06:00]} (22. Na2 $15) 22... exd4 $17 {[%emt 0:01:11]} ({Much worse is} 22... cxd4 $6 23. Nd3 $11) 23. Nd3 {[%emt 0:00:22]} (23. b3 $17 {was worth a try.}) 23... Nd7 $19 {[%emt 0:03:46]} 24. Qc2 {[%emt 0:00:44]} Rb3 {[%emt 0:01:08]} 25. Nc1 {[%emt 0:04:22]} Re3 {[%emt 0:00:48]} 26. Nd3 {[%emt 0:00:55]} Qb5 {[%emt 0:00:50]} 27. Kg2 {[%emt 0:03:20]} Ne5 {[%emt 0:02:39]} 28. Nxe5 {[%emt 0:00:15]} Rxe5 {[%emt 0:00:11]} 29. g4 {[%emt 0:02:39]} Re8 {[%emt 0:04:04]} 30. Rdd2 {[%emt 0:00:47]} Rb3 {[%emt 0:01:57]} 31. Qc1 {[%emt 0:00:56]} d3 {[%emt 0:00:25] Black is more active.} 32. h4 {[%emt 0:01:02]} c4 {[%emt 0:00:31]} 33. h5 {[%emt 0:00:04]} (33. Qg1 $17) 33... h6 {[%emt 0:00:31]} 34. Qh1 {[%emt 0:00:40]} f6 {[%emt 0:01:12]} 35. Qh2 {[%emt 0:00:53]} Qc5 {[%emt 0:00:17]} 36. Qf4 {[%emt 0:00:56]} Re5 {[%emt 0:00:43] Against Qf5} (36... c3 $19 37. bxc3 Rxc3) 37. Rd1 {[%emt 0:00:01] Now White is beyond hope.} (37. Kg3 $17) 37... Qd4 {[%emt 0:00:29]} 38. Qd2 {[%emt 0:00:11]} Re8 {[%emt 0:00:56] [#] Strongly threatening ...Reb8.} 39. Qc1 {[%emt 0:01:46]} Reb8 {[%emt 0:00:57]} 40. Rdd2 {[%emt 0:00:01]} Kf7 {[%emt 0:00:52]} 41. Kg3 $2 {[%emt 0:00:14]} (41. Kh3) 41... Qe5+ {[%emt 0:03:43] Black is clearly winning.} 42. Kg2 {[%emt 0:00:01]} c3 {[%emt 0:00:18]} 43. Rxd3 {[%emt 0:01:28]} cxb2 {[%emt 0:00:17]} 44. Qc7+ {[%emt 0:00:08]} Qe7 {[%emt 0:00:16] Weighted Error Value: White=0.60/Black=0.14 (very precise) .  Loses game:     	White=1     	---        Mistake:       	White=4     	Black=1      Inaccurate:     	White=3     	Black=1      OK:         	White=7     	Black=17     Best:        	White=1     	Black=2} 0-1

[Event "Budapest GM ONE WEEK Feb 2024"]
[Site "Budapest"]
[Date "2024.02.28"]
[Round "5.4"]
[White "Paschall, William"]
[Black "Paszewski, Mateusz"]
[Result "1/2-1/2"]
[ECO "A06"]
[WhiteElo "2331"]
[BlackElo "2286"]
[Annotator "TA"]
[PlyCount "69"]
[EventDate "2024.02.25"]
[EventType "tourn"]
[EventCountry "HUN"]
[SourceTitle "playchess.com"]
[Source "ChessBase"]
[SourceQuality "1"]
[TimeControl "5400+30"]

{[%evp 9,69,14,8,4,9,0,6,14,14,0,2,3,15,0,-10,-6,-4,-7,-6,-8,-9,-30,-24,-30,0,-13,-4,-16,-10,-32,-33,-36,-33,-46,-12,-25,-18,-30,-41,-41,-37,-35,-33,-93,-76,-94,-56,-78,-53,-122,-136,-153,-118,-161,-170,-156,-172,-173,-162,-159,-145,-144]} 1. Nf3 {[%emt 0:01:39]} d5 {[%emt 0:00:07]} 2. d3 {[%emt 0:03:01]} Nf6 {[%emt 0:01:50]} 3. g3 {[%emt 0:02:46]} Bg4 {[%emt 0:01:52]} 4. Bg2 {[%emt 0:01:03]} e6 {[%emt 0:00:49]} 5. O-O {[%emt 0:01:22]} Be7 {[%emt 0:00:56]} 6. h3 {[%emt 0:04:12]} Bh5 {[%emt 0:01:33]} 7. c4 {[%emt 0:03:02]} c6 {[%emt 0:04:31]} 8. Qb3 {[%emt 0:07:25] The position is equal.} Qb6 {[%emt 0:04:14]} 9. Be3 {[%emt 0:03:24]} Qxb3 {[%emt 0:06:24]} 10. axb3 {[%emt 0:00:26]} a6 {[%emt 0:00:02]} 11. g4 {[%emt 0:04:01]} Bg6 {[%emt 0:00:04]} 12. Nc3 {[%emt 0:09:34]} Nbd7 {[%emt 0:03:38]} 13. Nd2 {[%emt 0:05:17]} O-O {[%emt 0:21:38]} 14. f4 {[%emt 0:03:17]} h6 {[%emt 0:00:31]} 15. Nf3 {[%emt 0:08:05]} Bd6 {[%emt 0:08:40]} 16. Rac1 {[%emt 0:12:54]} Kh8 {[%emt 0:08:54]} 17. Nd2 {[%emt 0:04:19]} Rfe8 {[%emt 0:03:46]} 18. d4 {[%emt 0:01:07]} Kg8 {[%emt 0:06:36]} 19. c5 {[%emt 0:02:54]} Bc7 {[%emt 0:00:42]} 20. b4 {[%emt 0:00:28]} Bh7 {[%emt 0:06:35]} 21. Ra1 {[%emt 0:01:21]} Kh8 {[%emt 0:00:43]} 22. Nb3 {[%emt 0:01:23]} Ng8 {[%emt 0:01:29]} 23. Na5 {[%emt 0:00:47]} Rab8 {[%emt 0:00:31]} 24. Bd2 {[%emt 0:01:02]} Ne7 {[%emt 0:01:05]} 25. Ra3 {[%emt 0:01:57]} f5 {[%emt 0:04:53]} 26. Nb3 {[%emt 0:04:21]} (26. e3 $1 $15) 26... Rf8 {[%emt 0:01:05]} 27. Nc1 {[%emt 0:01:36]} Rf7 {[%emt 0:02:12]} 28. Nd1 {[%emt 0:01:45]} Rbf8 {[%emt 0:01:30]} 29. g5 {[%emt 0:02:02] [#]} (29. Nd3 $1 $15) 29... hxg5 $1 $17 {[%emt 0:01:41]} 30. fxg5 {[%emt 0:00:45]} e5 {[%emt 0:00:05]} 31. dxe5 {[%emt 0:00:56]} Nxe5 {[%emt 0:00:07] Black is clearly better.} 32. Bf4 {[%emt 0:01:03]} N7g6 {[%emt 0:00:41] ...Nxf4 is the strong threat.} 33. Nd3 {[%emt 0:02:00]} Nc4 {[%emt 0:05:23] [#] Hoping for ...Nxf4.} 34. Bxc7 {[%emt 0:00:37]} Rxc7 {[%emt 0:00:05]} (34... Nxa3 35. Bd6 Nc4 36. Bxf8 Rxf8 37. Bh1) 35. Ra2 {[%emt 0:00:46] Weighted Error Value: White=0.12 (very precise) /Black=0.07 (flawless) .  Mistake:       	White=2     	---        Inaccurate:     	White=1     	Black=3      OK:         	White=8     	Black=13     Best:        	---       	Black=1      Strong:       	---       	Black=1} 1/2-1/2